fUST/lending_fUST_20250902
["ID","MTS","AMOUNT","RATE_DAILY","PERIOD"]
[383024340,1756813844489,-445.96,0.00013698,2]
[383024341,1756813844500,-480.0,0.00013698,2]
[383024342,1756813844513,-480.0,0.00013698,2]
[383024343,1756813844523,-480.0,0.00013698,2]
[383024344,1756813844533,-480.0,0.00013698,2]
[383024345,1756813844544,-172.59349729,0.00013698,2]
[383024346,1756813844554,-480.0,0.00013698,2]
[383024347,1756813844563,-480.0,0.00013698,2]
[383024348,1756813844573,-480.0,0.00013698,2]
[383024349,1756813844584,-480.0,0.00013698,2]
[383024350,1756813844593,-480.0,0.00013698,2]
[383024351,1756813844604,-480.0,0.00013698,2]
[383024352,1756813844614,-480.0,0.00013698,2]
[383024353,1756813844625,-480.0,0.00013698,2]
[383024354,1756813844637,-480.0,0.00013698,2]
[383024355,1756813844649,-480.0,0.00013698,2]
[383024356,1756813844661,-410.88,0.00013698,2]
[383024357,1756813844673,-480.0,0.00013698,2]
[383024358,1756813844684,-480.0,0.00013698,2]
[383024359,1756813844695,-480.0,0.00013698,2]
[383024360,1756813844706,-480.0,0.00013698,2]
[383024361,1756813844717,-424.37,0.00013698,2]
[383024362,1756813844728,-480.0,0.00013698,2]
[383024363,1756813844739,-480.0,0.00013698,2]
[383024364,1756813844751,-565.06,0.00013698,2]
[383024365,1756813844763,-787.04,0.00013698,2]
[383024366,1756813844775,-480.0,0.00013698,2]
[383024367,1756813844787,-480.0,0.00013698,2]
[383024368,1756813844799,-480.0,0.00013698,2]
[383024369,1756813844810,-480.0,0.00013698,2]
[383024370,1756813844822,-510.91,0.00013698,2]
[383024371,1756813844834,-480.0,0.00013698,2]
[383024372,1756813844846,-480.0,0.00013698,2]
[383024373,1756813844856,-480.0,0.00013698,2]
[383024374,1756813844866,-588.47,0.00013698,2]
[383024375,1756813844876,-1018.38,0.00013698,2]
[383024376,1756813844886,-151.0,0.00013698,2]
[383024377,1756813844895,-480.0,0.00013698,2]
[383024378,1756813844906,-480.0,0.00013698,2]
[383024379,1756813844915,-156.16563522,0.00013698,2]
[383024380,1756813844925,-151.0,0.00013698,2]
[383024381,1756813844936,-480.0,0.00013698,2]
[383024382,1756813844946,-480.0,0.00013698,2]
[383024383,1756813844957,-480.0,0.00013698,2]
[383024384,1756813844968,-217.11756915,0.00013698,2]
[383024385,1756813844978,-151.0,0.00013698,2]
[383024386,1756813844988,-151.0,0.00013698,2]
[383024387,1756813845000,-151.0,0.00013698,2]
[383024388,1756813845014,-480.0,0.00013698,2]
[383024389,1756813845025,-151.0,0.00013698,2]
[383024390,1756813845035,-480.0,0.00013698,2]
[383024391,1756813845046,-151.41952284,0.00013698,2]
[383024392,1756813845057,-480.0,0.00013698,2]
[383024393,1756813845067,-523.65,0.00013698,2]
[383024394,1756813845078,-480.0,0.00013698,2]
[383024395,1756813845088,-805.69,0.00013698,2]
[383024396,1756813845098,-917.31427,0.00013699,2]
[383024397,1756813845109,-255.152554,0.00013699,2]
[383024398,1756813845119,-151.0,0.00013699,2]
[383024399,1756813845129,-151.0,0.00013699,2]
[383024400,1756813845139,-151.0,0.00013699,2]
[383024401,1756813845149,-151.0,0.00013699,2]
[383024402,1756813845160,-151.0,0.00013699,2]
[383024403,1756813845170,-151.0,0.00013699,2]
[383024404,1756813845180,-168.0,0.00013702,2]
[383024405,1756813845191,-1009.0,0.00013709,2]
[383024406,1756813845202,-1009.0,0.00013716,2]
[383024407,1756813845214,-151.0,0.00013716,2]
[383024408,1756813845225,-151.0,0.00013716,2]
[383024409,1756813845236,-151.0,0.00013716,2]
[383024410,1756813845250,-168.0,0.00013745,2]
[383024411,1756813845260,-168.0,0.00013796,2]
[383024412,1756813845270,-1009.0,0.00013844,2]
[383024413,1756813845281,-168.0,0.00013844,2]
[383024414,1756813845292,-151.0,0.0001385,2]
[383024415,1756813845302,-151.0,0.0001385,2]
[383024416,1756813845312,-151.0,0.0001385,2]
[383024417,1756813845322,-1009.0,0.0001385,2]
[383024418,1756813845332,-1009.0,0.00013866,2]
[383024419,1756813845342,-1009.0,0.00013882,2]
[383024420,1756813845353,-2227.0,0.00013952,2]
[383024421,1756813845364,-355.12380272,0.00013971,2]
[383024422,1756813845375,-500.0,0.00013971,2]
[383024423,1756813845385,-230.31903808,0.00013971,2]
[383024424,1756813845396,-500.0,0.00013971,2]
[383024425,1756813845407,-300.0,0.00013971,2]
[383024426,1756813845416,-300.0,0.00013971,2]
[383024428,1756813845426,-300.0,0.00013971,2]
[383024430,1756813845437,-300.0,0.00013971,2]
[383024432,1756813845448,-300.0,0.00013971,2]
[383024434,1756813845459,-300.0,0.00013971,2]
[383024436,1756813845473,-300.0,0.00013971,2]
[383024438,1756813845483,-300.0,0.00013971,2]
[383024440,1756813845495,-300.0,0.00013971,2]
[383024442,1756813845506,-300.0,0.00013971,2]
[383024444,1756813845516,-300.0,0.00013971,2]
[383024446,1756813845527,-300.0,0.00013971,2]
[383024448,1756813845537,-300.0,0.00013971,2]
[383024450,1756813845547,-300.0,0.00013971,2]
[383024451,1756813845558,-300.0,0.00013971,2]
[383024453,1756813845569,-600.0,0.00013971,2]
[383024455,1756813845579,-547.0,0.00013972,2]
[383024457,1756813845589,-151.0,0.00013972,2]
[383024459,1756813845599,-151.0,0.00013972,2]
[383024461,1756813845609,-500.0,0.00013972,2]
[383024463,1756813845618,-151.0,0.00013972,2]
[383024465,1756813845630,-151.0,0.00013972,2]
[383024467,1756813845641,-209.63693456,0.00013972,2]
[383024468,1756813845652,-158.43210087,0.00013972,2]
[383024469,1756813845663,-245.0,0.00013972,2]
[383024470,1756813845675,-590.6234901,0.00013972,2]
[383024471,1756813845685,-480.0,0.00013972,2]
[383024472,1756813845695,-480.0,0.00013972,2]
[383024473,1756813845706,-480.0,0.00013972,2]
[383024474,1756813845716,-480.0,0.00013972,2]
[383024475,1756813845727,-480.0,0.00013972,2]
[383024476,1756813845738,-480.0,0.00013972,2]
[383024477,1756813845748,-480.0,0.00013972,2]
[383024478,1756813845758,-480.0,0.00013972,2]
[383024479,1756813845768,-480.0,0.00013972,2]
[383024480,1756813845778,-480.0,0.00013972,2]
[383024481,1756813845789,-480.0,0.00013972,2]
[383024482,1756813845798,-480.0,0.00013972,2]
[383024483,1756813845809,-480.0,0.00013972,2]
[383024484,1756813845821,-480.0,0.00013972,2]
[383024485,1756813845831,-480.0,0.00013972,2]
[383024486,1756813845842,-480.0,0.00013972,2]
[383024487,1756813845853,-480.0,0.00013972,2]
[383024488,1756813845863,-480.0,0.00013972,2]
[383024489,1756813845873,-480.0,0.00013972,2]
[383024490,1756813845883,-480.0,0.00013972,2]
[383024491,1756813845893,-480.0,0.00013972,2]
[383024492,1756813845904,-480.0,0.00013972,2]
[383024493,1756813845915,-1358.4,0.00013972,2]
[383024494,1756813845925,-480.0,0.00013972,2]
[383024495,1756813845936,-480.0,0.00013972,2]
[383024496,1756813845947,-480.0,0.00013972,2]
[383024497,1756813845957,-400.47,0.00013972,2]
[383024498,1756813845968,-1471.26,0.00013972,2]
[383024499,1756813845979,-480.0,0.00013972,2]
[383024500,1756813845991,-151.0,0.00013972,2]
[383024501,1756813846001,-151.0,0.00013972,2]
[383024502,1756813846011,-480.0,0.00013972,2]
[383024503,1756813846022,-234.16,0.00013972,2]
[383024504,1756813846033,-480.0,0.00013972,2]
[383024505,1756813846045,-480.0,0.00013972,2]
[383024506,1756813846058,-414.72,0.00013972,2]
[383024508,1756813846068,-480.0,0.00013972,2]
[383024510,1756813846078,-480.0,0.00013972,2]
[383024512,1756813846088,-480.0,0.00013972,2]
[383024514,1756813846098,-480.0,0.00013972,2]
[383024516,1756813846108,-498.87,0.00013972,2]
[383024518,1756813846117,-480.0,0.00013972,2]
[383024519,1756813846128,-480.0,0.00013972,2]
[383024520,1756813846139,-480.0,0.00013972,2]
[383024521,1756813846150,-480.0,0.00013972,2]
[383024522,1756813846161,-480.0,0.00013972,2]
[383024523,1756813846172,-480.0,0.00013972,2]
[383024524,1756813846183,-1068.42,0.00013972,2]
[383024525,1756813846193,-480.0,0.00013972,2]
[383024526,1756813846203,-333.16,0.00013972,2]
[383024527,1756813846213,-800.11,0.00013972,2]
[383024528,1756813846223,-480.0,0.00013972,2]
[383024529,1756813846233,-480.0,0.00013972,2]
[383024530,1756813846243,-480.0,0.00013972,2]
[383024531,1756813846253,-480.0,0.00013972,2]
[383024532,1756813846263,-480.0,0.00013972,2]
[383024533,1756813846274,-151.0,0.00013972,2]
[383024534,1756813846284,-805.23,0.00013972,2]
[383024535,1756813846294,-480.0,0.00013972,2]
[383024536,1756813846306,-578.53,0.00013972,2]
[383024537,1756813846316,-480.0,0.00013972,2]
[383024538,1756813846327,-480.0,0.00013972,2]
[383024539,1756813846338,-480.0,0.00013972,2]
[383024540,1756813846348,-480.0,0.00013972,2]
[383024541,1756813846358,-480.0,0.00013972,2]
[383024542,1756813846369,-480.0,0.00013972,2]
[383024543,1756813846378,-124.82737509,0.00013972,2]
[383024547,1756813846473,-480.0,0.00013698,2]
[383024548,1756813846483,-229.06929334,0.00013972,2]
[383024549,1756813846498,-126.10333157,0.00013972,2]
[383024550,1756813846509,-480.0,0.00013972,2]
[383024551,1756813846519,-480.0,0.00013972,2]
[383024552,1756813846529,-480.0,0.00013972,2]
[383024553,1756813846540,-480.0,0.00013972,2]
[383024554,1756813846552,-480.0,0.00013972,2]
[383024555,1756813846562,-480.0,0.00013972,2]
[383024556,1756813846572,-480.0,0.00013972,2]
[383024557,1756813846582,-480.0,0.00013972,2]
[383024558,1756813846592,-480.0,0.00013972,2]
[383024559,1756813846602,-480.0,0.00013972,2]
[383024560,1756813846612,-480.0,0.00013972,2]
[383024561,1756813846622,-565.06,0.00013972,2]
[383024562,1756813846632,-787.04,0.00013972,2]
[383024563,1756813846642,-480.0,0.00013972,2]
[383024564,1756813846652,-480.0,0.00013972,2]
[383024565,1756813846661,-480.0,0.00013972,2]
[383024566,1756813846671,-480.0,0.00013972,2]
[383024567,1756813846681,-510.91,0.00013972,2]
[383024568,1756813846690,-480.0,0.00013972,2]
[383024569,1756813846701,-480.0,0.00013972,2]
[383024570,1756813846711,-588.47,0.00013972,2]
[383024571,1756813846722,-1018.38,0.00013972,2]
[383024572,1756813846731,-480.0,0.00013972,2]
[383024573,1756813846741,-464.02249896,0.00013972,2]
[383024574,1756813846751,-151.0,0.00013972,2]
[383024575,1756813846760,-151.0,0.00013972,2]
[383024576,1756813846770,-619.89,0.00013972,2]
[383024577,1756813846779,-151.0,0.00013972,2]
[383024578,1756813846788,-235.44725,0.00013972,2]
[383024579,1756813846799,-151.0,0.00013972,2]
[383024580,1756813846809,-480.0,0.00013972,2]
[383024581,1756813846818,-199.143732,0.00013972,2]
[383024582,1756813846828,-480.0,0.00013972,2]
[383024583,1756813846837,-480.0,0.00013972,2]
[383024584,1756813846848,-480.0,0.00013972,2]
[383024585,1756813846858,-805.69,0.00013972,2]
[383024586,1756813846867,-222.91,0.00013972,2]
[383024587,1756813846877,-2988.79743649,0.00014,2]
[383024588,1756813846891,-3000.0,0.0001404,2]
[383024589,1756813846900,-406.5,0.00014043,2]
[383024590,1756813846910,-218.048805,0.00014142,2]
[383024591,1756813846921,-151.0,0.00014142,2]
[383024592,1756813846931,-11369.04596444,0.00014142,2]
[383024593,1756813846943,-417.15472785,0.00014142,2]
[383024594,1756813846953,-530.22964562,0.00014142,2]
[383024595,1756813846966,-160.0,0.00014142,2]
[383024596,1756813846979,-217.47380718,0.00014142,2]
[383024597,1756813846989,-232.87008258,0.00014142,2]
[383024598,1756813846999,-160.0,0.00014142,2]
[383024599,1756813847010,-316.3878574,0.00014142,2]
[383024600,1756813847021,-846.21894513,0.00014142,2]
[383024601,1756813847033,-160.0,0.00014142,2]
[383024602,1756813847042,-160.0,0.00014142,2]
[383024603,1756813847052,-160.0,0.00014142,2]
[383024604,1756813847061,-174.2,0.00014157,2]
[383024605,1756813847071,-168.0,0.00014192,2]
[383024606,1756813847080,-547.0,0.00014246,2]
[383024607,1756813847090,-151.0,0.00014246,2]
[383024608,1756813847099,-166.26133616,0.00014246,2]
[383024609,1756813847109,-396.0,0.00014246,2]
[383024610,1756813847118,-151.0,0.00014246,2]
[383024611,1756813847128,-151.0,0.00014246,2]
[383024612,1756813847137,-480.0,0.00014246,2]
[383024613,1756813847147,-480.0,0.00014246,2]
[383024614,1756813847157,-480.0,0.00014246,2]
[383024615,1756813847166,-480.0,0.00014246,2]
[383024616,1756813847176,-480.0,0.00014246,2]
[383024617,1756813847186,-480.0,0.00014246,2]
[383024618,1756813847195,-480.0,0.00014246,2]
[383024619,1756813847205,-480.0,0.00014246,2]
[383024620,1756813847215,-480.0,0.00014246,2]
[383024621,1756813847226,-480.0,0.00014246,2]
[383024622,1756813847236,-480.0,0.00014246,2]
[383024623,1756813847249,-480.0,0.00014246,2]
[383024624,1756813847259,-480.0,0.00014246,2]
[383024625,1756813847269,-480.0,0.00014246,2]
[383024626,1756813847279,-480.0,0.00014246,2]
[383024627,1756813847290,-480.0,0.00014246,2]
[383024628,1756813847299,-480.0,0.00014246,2]
[383024629,1756813847309,-480.0,0.00014246,2]
[383024630,1756813847319,-455.7154273,0.00014246,2]
[383024631,1756813847329,-480.0,0.00014246,2]
[383024632,1756813847338,-1358.4,0.00014246,2]
[383024633,1756813847348,-480.0,0.00014246,2]
[383024634,1756813847358,-480.0,0.00014246,2]
[383024635,1756813847367,-480.0,0.00014246,2]
[383024636,1756813847377,-1471.26,0.00014246,2]
[383024637,1756813847388,-480.0,0.00014246,2]
[383024638,1756813847399,-478.99297881,0.00014246,2]
[383024639,1756813847408,-480.0,0.00014246,2]
[383024640,1756813847418,-480.0,0.00014246,2]
[383024641,1756813847429,-480.0,0.00014246,2]
[383024642,1756813847439,-480.0,0.00014246,2]
[383024643,1756813847448,-480.0,0.00014246,2]
[383024644,1756813847459,-480.0,0.00014246,2]
[383024645,1756813847470,-480.0,0.00014246,2]
[383024646,1756813847480,-480.0,0.00014246,2]
[383024647,1756813847489,-480.0,0.00014246,2]
[383024648,1756813847498,-480.0,0.00014246,2]
[383024649,1756813847509,-480.0,0.00014246,2]
[383024650,1756813847519,-480.0,0.00014246,2]
[383024651,1756813847529,-1068.42,0.00014246,2]
[383024652,1756813847539,-480.0,0.00014246,2]
[383024653,1756813847550,-800.11,0.00014246,2]
[383024654,1756813847559,-8.16950857,0.00014246,2]
[383024662,1756814506446,6264.45,0.00013561,2]
[383024663,1756814522686,300.0,0.00013697,2]
[383024664,1756814582629,300.0,0.00013697,2]
[383024665,1756814666908,866.33458653,0.00013598,2]
[383024667,1756814826079,-517.33110374,0.00013698,2]
[383024668,1756814826100,-480.0,0.00013698,2]
[383024669,1756814826120,-480.0,0.00013698,2]
[383024670,1756814826139,-186.55439043,0.00013698,2]
[383024671,1756814826159,-480.0,0.00013698,2]
[383024672,1756814826178,-480.0,0.00013698,2]
[383024673,1756814826198,-480.0,0.00013698,2]
[383024674,1756814826217,-480.0,0.00013698,2]
[383024675,1756814826237,-603.17990611,0.00013698,2]
[383024676,1756814826258,-480.0,0.00013698,2]
[383024677,1756814826278,-480.0,0.00013698,2]
[383024678,1756814826298,-480.0,0.00013698,2]
[383024679,1756814826317,-480.0,0.00013698,2]
[383024680,1756814826338,-480.0,0.00013698,2]
[383024681,1756814826358,-480.0,0.00013698,2]
[383024682,1756814826377,-480.0,0.00013698,2]
[383024683,1756814826397,-480.0,0.00013698,2]
[383024684,1756814826418,-480.0,0.00013698,2]
[383024685,1756814826438,-108.45009908,0.00013698,2]
[383024686,1756814845132,-371.54990092,0.00013698,2]
[383024687,1756814845153,-480.0,0.00013698,2]
[383024688,1756814845177,-422.73839063,0.00013698,2]
[383024713,1756815034008,400.78257735,0.00013697,2]
[383024714,1756815034073,500.0,0.00013697,2]
[383024715,1756815034127,560.3490352,0.00013697,2]
[383024750,1756815038078,-57.26160937,0.00013698,2]
[383024751,1756815038087,-480.0,0.00013698,2]
[383024752,1756815038096,-420.01789056,0.00013698,2]
[383024805,1756815046287,-59.98210944,0.00013698,2]
[383024807,1756815046298,-482.0,0.00013698,2]
[383024808,1756815046307,-480.0,0.00013698,2]
[383024809,1756815046317,-480.0,0.00013698,2]
[383024811,1756815046327,-480.0,0.00013698,2]
[383024813,1756815046336,-504.96,0.00013698,2]
[383024814,1756815046345,-480.0,0.00013698,2]
[383024815,1756815046355,-480.0,0.00013698,2]
[383024816,1756815046364,-430.44,0.00013698,2]
[383024817,1756815046373,-576.2,0.00013698,2]
[383024818,1756815046386,-480.0,0.00013698,2]
[383024819,1756815046396,-1000.0,0.00013698,2]
[383024820,1756815046405,-1000.0,0.00013698,2]
[383024821,1756815046415,-1000.0,0.00013698,2]
[383024822,1756815046424,-1000.0,0.00013698,2]
[383024823,1756815046434,-360.62354022,0.00013698,2]
[383024824,1756815046444,-1000.0,0.00013698,2]
[383024826,1756815046454,-190.61,0.00013698,2]
[383024827,1756815046466,-480.0,0.00013698,2]
[383024828,1756815046477,-480.0,0.00013698,2]
[383024829,1756815046487,-480.0,0.00013698,2]
[383024830,1756815046498,-480.0,0.00013698,2]
[383024831,1756815046509,-480.0,0.00013698,2]
[383024832,1756815046519,-480.0,0.00013698,2]
[383024833,1756815046529,-480.0,0.00013698,2]
[383024834,1756815046539,-480.0,0.00013698,2]
[383024835,1756815046549,-480.0,0.00013698,2]
[383024836,1756815046559,-486.61,0.00013698,2]
[383024837,1756815046568,-480.0,0.00013698,2]
[383024838,1756815046577,-480.0,0.00013698,2]
[383024839,1756815046586,-480.0,0.00013698,2]
[383024840,1756815046595,-480.0,0.00013698,2]
[383024841,1756815046604,-621.93,0.00013698,2]
[383024848,1756815046745,-480.0,0.00013698,2]
[383024850,1756815046760,-480.0,0.00013698,2]
[383024852,1756815046770,-480.0,0.00013698,2]
[383024854,1756815046780,-208.68970681,0.00013698,2]
[383024855,1756815046794,-480.0,0.00013698,2]
[383024856,1756815046804,-480.0,0.00013698,2]
[383024857,1756815046813,-480.0,0.00013698,2]
[383024858,1756815046823,-480.0,0.00013698,2]
[383024859,1756815046833,-480.0,0.00013698,2]
[383024860,1756815046843,-480.0,0.00013698,2]
[383024861,1756815046852,-480.0,0.00013698,2]
[383024862,1756815046862,-363.42,0.00013698,2]
[383024863,1756815046873,-480.0,0.00013698,2]
[383024864,1756815046883,-276.29,0.00013698,2]
[383024865,1756815046893,-480.0,0.00013698,2]
[383024866,1756815046903,-480.0,0.00013698,2]
[383024867,1756815046913,-480.0,0.00013698,2]
[383024868,1756815046923,-480.0,0.00013698,2]
[383024869,1756815046932,-492.04,0.00013698,2]
[383024870,1756815046941,-480.0,0.00013698,2]
[383024871,1756815046951,-480.0,0.00013698,2]
[383024872,1756815046959,-480.0,0.00013698,2]
[383024873,1756815046968,-480.0,0.00013698,2]
[383024874,1756815046977,-480.0,0.00013698,2]
[383024875,1756815046986,-480.0,0.00013698,2]
[383024876,1756815046996,-480.0,0.00013698,2]
[383024877,1756815047005,-480.0,0.00013698,2]
[383024878,1756815047015,-349.61396585,0.00013698,2]
[383024879,1756815047024,-480.0,0.00013698,2]
[383024880,1756815047033,-363.54,0.00013698,2]
[383024881,1756815047042,-288.88,0.00013698,2]
[383024882,1756815047051,-480.0,0.00013698,2]
[383024883,1756815047060,-480.0,0.00013698,2]
[383024884,1756815047069,-480.0,0.00013698,2]
[383024885,1756815047078,-480.0,0.00013698,2]
[383024886,1756815047087,-575.16,0.00013698,2]
[383024887,1756815047096,-480.0,0.00013698,2]
[383024888,1756815047105,-480.0,0.00013698,2]
[383024889,1756815047114,-409.33,0.00013698,2]
[383024890,1756815047123,-480.0,0.00013698,2]
[383024891,1756815047131,-456.21474337,0.00013698,2]
[383024892,1756815047140,-480.0,0.00013698,2]
[383024893,1756815047149,-480.0,0.00013698,2]
[383024894,1756815047161,-480.0,0.00013698,2]
[383024895,1756815047170,-480.0,0.00013698,2]
[383024896,1756815047179,-612.43,0.00013698,2]
[383024897,1756815047187,-480.0,0.00013698,2]
[383024898,1756815047198,-933.51,0.00013698,2]
[383024899,1756815047207,-480.0,0.00013698,2]
[383024900,1756815047216,-376.35,0.00013698,2]
[383024901,1756815047225,-480.0,0.00013698,2]
[383024902,1756815047234,-480.0,0.00013698,2]
[383024903,1756815047243,-355.4028545,0.00013698,2]
[383024904,1756815047252,-480.0,0.00013698,2]
[383024905,1756815047261,-480.0,0.00013698,2]
[383024906,1756815047270,-480.0,0.00013698,2]
[383024907,1756815047279,-480.0,0.00013698,2]
[383024908,1756815047288,-480.0,0.00013698,2]
[383024909,1756815047297,-480.0,0.00013698,2]
[383024910,1756815047306,-459.74,0.00013698,2]
[383024911,1756815047316,-1825.09,0.00013698,2]
[383024912,1756815047325,-603.95,0.00013698,2]
[383024913,1756815047333,-480.0,0.00013698,2]
[383024914,1756815047343,-603.5,0.00013698,2]
[383024915,1756815047351,-518.76679831,0.00013698,2]
[383024916,1756815047361,-14.72628207,0.00013698,2]
[383024917,1756815050916,150.52156,0.00025,30]
[383024918,1756815052453,307.074381,0.00013697,2]
[383024919,1756815052664,500.0,0.00013697,2]
[383024920,1756815056836,317.24846276,0.00013697,2]
[383024921,1756815074530,10000.0,0.00025,30]
[383024922,1756815122618,300.0,0.00013697,2]
[383024923,1756815237844,758.04276317,0.00013598,2]
[383024925,1756815302614,1174.0,0.00013697,2]
[383024926,1756815329122,229.67916902,0.0001369,2]
[383024932,1756815515524,334.72226192,0.00013697,2]
[383024933,1756815515558,500.0,0.00013697,2]
[383024934,1756815515697,500.0,0.00013697,2]
[383024935,1756815515758,307.19639133,0.00013697,2]
[383024936,1756815522775,467.67,0.00025,30]
[383024947,1756815871237,663.2874178,0.00013598,2]
[383024948,1756815876628,250.0,0.00013555,2]
[383024959,1756816051121,-480.0,0.00013698,2]
[383024960,1756816051141,-480.0,0.00013698,2]
[383024961,1756816051163,-514.59,0.00013698,2]
[383024962,1756816051184,-225.08441772,0.00013698,2]
[383025095,1756816240179,-480.0,0.00013698,2]
[383025096,1756816240189,-480.0,0.00013698,2]
[383025097,1756816240199,-480.0,0.00013698,2]
[383025098,1756816240208,-480.0,0.00013698,2]
[383025099,1756816240218,-480.0,0.00013698,2]
[383025100,1756816240227,-480.0,0.00013698,2]
[383025101,1756816240237,-525.93,0.00013698,2]
[383025102,1756816240247,-480.0,0.00013698,2]
[383025103,1756816240257,-480.0,0.00013698,2]
[383025104,1756816240267,-480.0,0.00013698,2]
[383025105,1756816240277,-480.0,0.00013698,2]
[383025106,1756816240287,-480.0,0.00013698,2]
[383025107,1756816240296,-480.0,0.00013698,2]
[383025108,1756816240307,-480.0,0.00013698,2]
[383025109,1756816240316,-480.0,0.00013698,2]
[383025110,1756816240326,-480.0,0.00013698,2]
[383025111,1756816240336,-480.0,0.00013698,2]
[383025112,1756816240345,-480.0,0.00013698,2]
[383025113,1756816240355,-388.94125252,0.00013698,2]
[383025114,1756816240365,-480.0,0.00013698,2]
[383025115,1756816240374,-188.92,0.00013698,2]
[383025116,1756816240383,-480.0,0.00013698,2]
[383025117,1756816240393,-169.19,0.00013698,2]
[383025118,1756816240403,-2321.0899602,0.00013698,2]
[383025119,1756816240413,-480.0,0.00013698,2]
[383025120,1756816240422,-548.02,0.00013698,2]
[383025121,1756816240432,-480.0,0.00013698,2]
[383025122,1756816240441,-480.0,0.00013698,2]
[383025123,1756816240450,-174.77,0.00013698,2]
[383025124,1756816240460,-480.0,0.00013698,2]
[383025125,1756816240469,-482.40299777,0.00013698,2]
[383025126,1756816240479,-314.95,0.00013698,2]
[383025127,1756816240489,-480.0,0.00013698,2]
[383025128,1756816240498,-480.0,0.00013698,2]
[383025129,1756816240509,-480.0,0.00013698,2]
[383025130,1756816240518,-480.0,0.00013698,2]
[383025131,1756816240528,-480.0,0.00013698,2]
[383025132,1756816240538,-480.0,0.00013698,2]
[383025133,1756816240547,-480.95599647,0.00013698,2]
[383025134,1756816240557,-480.0,0.00013698,2]
[383025135,1756816240567,-480.0,0.00013698,2]
[383025136,1756816240576,-404.22,0.00013698,2]
[383025137,1756816240585,-480.0,0.00013698,2]
[383025138,1756816240595,-480.0,0.00013698,2]
[383025139,1756816240604,-208.3701197,0.00013698,2]
[383025140,1756816240613,-480.0,0.00013698,2]
[383025141,1756816240622,-480.0,0.00013698,2]
[383025142,1756816240631,-217.51975208,0.00013698,2]
[383025143,1756816240641,-480.0,0.00013698,2]
[383025144,1756816240651,-480.0,0.00013698,2]
[383025145,1756816240660,-480.0,0.00013698,2]
[383025146,1756816240670,-513.23,0.00013698,2]
[383025147,1756816240679,-172.12,0.00013698,2]
[383025148,1756816240688,-480.0,0.00013698,2]
[383025149,1756816240697,-480.0,0.00013698,2]
[383025150,1756816240707,-480.0,0.00013698,2]
[383025151,1756816240715,-618.86,0.00013698,2]
[383025152,1756816240725,-480.0,0.00013698,2]
[383025153,1756816240734,-480.0,0.00013698,2]
[383025154,1756816240743,-480.0,0.00013698,2]
[383025155,1756816240753,-236.06,0.00013698,2]
[383025156,1756816240763,-480.0,0.00013698,2]
[383025157,1756816240773,-480.0,0.00013698,2]